Cogmind - Beta 14 @@@ ROGUE MODE // 2024.11.23 @ 14:03:09 Player: WazdakkaGutsmek Result: Core destroyed Performance ------------- Evolutions (2) 1000 Regions Visited (4) 800 Robots Destroyed (66) 330 Value Destroyed (1982) 1982 Prototype IDs (2) 40 Alien Tech Used (0) 0 Bonus (245) 245 TOTAL SCORE: 4397 Bonus ------- High Alert Combat Kills 45 Entered Garrisons 200 Cogmind --------- Core Integrity 0/550 Matter 195/300 Energy 100/100 System Corruption 2% Temperature Critical (561) Movement Walking (190) Ox1 Location -8/Garrison Parts ------- > --- POWER (1) -------- (None) > --- PROPULSION (4+2) - Carbon-fiber Leg Titanium Leg (+) Titanium Leg (+) Arachnoskeleton > --- UTILITY (4) ------ Structural Scanner Hardened Light Armor Plating Hardened Light Armor Plating > --- WEAPON (2) ------- Precision Beam Rifle Minigun > --- INVENTORY (5) ---- Deuterium Engine Remote Datajack Multitool Peak State ------------ > --- POWER ------------ Deuterium Engine > --- PROPULSION ------- Carbon-fiber Leg Titanium Leg Titanium Leg Titanium Leg Arachnoskeleton > --- UTILITY ---------- Structural Scanner Hardened Light Armor Plating Hardened Light Armor Plating Reflective Plating > --- WEAPON ----------- Precision Beam Rifle Flak Gun > --- INVENTORY -------- Deuterium Engine Minigun Remote Datajack Multitool [Rating: 53] Favorites ----------- Power Light Ion Engine Engine Light Ion Engine Propulsion Light Treads Treads Light Treads Leg Titanium Leg Utility Scrap Shield Device Structural Scanner Storage Small Storage Unit Protection Scrap Shield Weapon Heavy Battle Rifle Energy Gun Subdweller Laser Ballistic Gun Heavy Battle Rifle Ballistic Cannon Battle Cannon Launcher Subdweller Shrapnel Launcher Special Weapon Multitool Build | -11 -10 -10 -8 -8 ------- Run | Yrd Mat Sub Mat Gar Slots Evolved 4 | . . . 4 . Power . | . . . . . Propulsion 2 | . . . 2 . Utility 2 | . . . 2 . Weapon . | . . . . . Parts Attached 58 | . 18 18 17 5 Power 5 | . 2 2 1 . Engine 5 | . 2 2 1 . Core . | . . . . . Reactor . | . . . . . Propulsion 18 | . 8 3 6 1 Treads 11 | . 8 3 . . Leg 7 | . . . 6 1 Wheel . | . . . . . Hover . | . . . . . Flight . | . . . . . Utility 13 | . 3 4 5 1 Device 4 | . 2 . 2 . Storage 1 | . 1 . . . Processor . | . . . . . Hackware . | . . . . . Protection 8 | . . 4 3 1 Artifact . | . . . . . Weapon 22 | . 5 9 5 3 Energy Gun 6 | . . 5 1 . Energy Cannon . | . . . . . Ballistic Gun 9 | . 2 2 3 2 Ballistic Cannon 5 | . 3 2 . . Launcher 1 | . . . 1 . Special Weapon 1 | . . . . 1 Impact Weapon . | . . . . . Slashing Weapon . | . . . . . Piercing Weapon . | . . . . . Special Melee Weapon . | . . . . . Unidentified Prototypes 2 | . . . 2 . Parts Lost 13 | . . 3 5 5 Power 3 | . . 1 1 1 Propulsion 4 | . . 2 1 1 Utility 4 | . . . 2 2 Weapon 2 | . . . 1 1 Highest Loss Streak 4 | . . 1 4 4 To Critical Strikes . | . . . . . Average Slot Usage (%) 80 | . 94 80 56 84 Engine 12 | . 13 13 6 7 Treads 20 | . 19 26 . . Leg 5 | . 8 . 17 34 Device 3 | . 10 . 8 7 Storage 3 | . 14 1 . . Protection 8 | . . 9 9 20 Energy Gun 3 | . . 4 2 7 Ballistic Gun 14 | . 17 14 10 6 Ballistic Cannon 7 | . 9 8 . . Peak Build Rating 53 | . 7 20 51 53 Average Rating 17 | . 6 13 41 51 On Entrance 18 | 6 6 7 20 51 Naked Turns . | . . . . . Heaviest Build 33 | 10 18 29 33 30 Greatest Support 114 | 20 40 40 114 65 Greatest Overweight (x) 4 | . 4 1 . . Average Overweight (x) . | . . . . . Largest Inventory Capacity 10 | . 10 10 5 5 Average Capacity 6 | . 8 5 5 5 Most Carried 10 | . 8 10 5 5 Average Carried 5 | . 7 5 4 4 Final Capacity 10 | 8 10 5 5 5 Final Carried 8 | 6 8 5 5 3 Class Distribution -------------------- 70% | Mutant 29% | Derelict-Mutant Dominant Class ---------------- Mutant | -10/Materials Mutant | -10/Subcaves Mutant | -8/Materials Mutant | -8/Garrison Resources | -11 -10 -10 -8 -8 ----------- Run | Yrd Mat Sub Mat Gar Matter Collected 1886 | 200 195 692 597 202 Remotely . | . . . . . Salvage Created 1921 | . 335 416 672 498 Parts 131 | . 37 30 36 28 Haulers Intercepted 4 | . 2 . 2 . Recyclers Shooed . | . . . . . Parts Field Recycled . | . . . . . Retrieved Matter . | . . . . . Parts Self-Destructed 8 | . . 8 . . Prevented . | . . . . . Kills | -11 -10 -10 -8 -8 ------- Run | Yrd Mat Sub Mat Gar Combat Hostiles Destroyed 56 | . 12 13 16 15 Guns 41 | . 8 5 13 15 Cannons 12 | . 4 8 . . AOE 3 | . . . 3 . Classes Destroyed 11 | . 5 3 3 . Builder 1 | . . . 1 . Hauler 4 | . 2 . 2 . Operator 1 | . 1 . . . Watcher 4 | . 3 . 1 . Swarmer 19 | . 10 2 3 4 Grunt 18 | . 2 . 8 8 Duelist 1 | . . . 1 . Sentry 6 | . . 1 3 2 Hunter 2 | . . . 1 1 Artisan 1 | . . 1 . . Subdweller 10 | . . 10 . . Best Kill Streak 6 | . 3 2 5 6 Combat Bots Only 6 | . 3 2 4 6 Max Kills in Single Turn 2 | . 2 1 2 1 Gunslinging 1 | . 1 . . . Exploded 1 | . . . 1 . Melee . | . . . . . Uniques/NPCs Destroyed . | . . . . . Combat | -11 -10 -10 -8 -8 -------- Run | Yrd Mat Sub Mat Gar Hostile Shots Fired 255 | . 46 53 72 84 Missed 73 | . 14 18 20 21 Damage Taken 3278 | . 290 804 931 1253 Core 668 | . 70 38 191 369 Absorbed by Shields . | . . . . . Ignored by Resistances 74 | . . . 2 72 Core Remaining (%) 78 | 100 . 56 . . Volleys Fired 229 | . 36 96 56 41 Largest 2 | . 2 2 2 2 Hottest 99 | . 55 99 89 89 Shots Fired 373 | . 72 137 102 62 Gun 277 | . 49 67 99 62 Cannon 93 | . 23 70 . . Launcher 3 | . . . 3 . Special . | . . . . . Kinetic 319 | . 72 117 89 41 Thermal 52 | . . 18 13 21 Explosive . | . . . . . Electromagnetic 2 | . . 2 . . Robot Hit Streak 13 | . 7 13 11 11 Robot Miss Streak 10 | . 3 4 9 10 Penetration Max . | . . . . . Secondary Targets 4 | . 1 . 1 2 Max Gunslinging Chain 1 | . 1 . 1 1 Shots Hit Robots 221 | . 41 52 71 57 Core Hits 175 | . 29 21 67 58 Critical Kills . | . . . . . Critical Parts Destroyed 2 | . . 1 1 . Critical Strikes 9 | . 1 3 2 3 Burn 4 | . . . 1 3 Destroy 2 | . . 1 1 . Blast 3 | . 1 2 . . Melee Attacks . | . . . . . Impact . | . . . . . Slashing . | . . . . . Piercing . | . . . . . Sneak Attacks . | . . . . . Combat Hostiles . | . . . . . Follow-up Attacks . | . . . . . Damage Inflicted 4112 | . 482 985 1668 977 Guns 2965 | . 238 429 1321 977 Cannons 762 | . 244 518 . . Explosions 385 | . . 38 347 . Melee . | . . . . . Ramming . | . . . . . Kinetic 3403 | . 482 749 1546 626 Thermal 696 | . . 223 122 351 Explosive . | . . . . . Electromagnetic 13 | . . 13 . . Impact . | . . . . . Slashing . | . . . . . Piercing . | . . . . . Highest Corruption 2 | . . . 2 2 Average Corruption 2 | . . . 2 2 Corruption Purged . | . . . . . Corruption Blocked . | . . . . . Effects 10 | . . . 9 1 Message Errors 2 | . . . 2 . Matter Fused 1 | . . . 1 . Energy Discharges 3 | . . . 2 1 Data Loss (minor) 1 | . . . 1 . Alerts 2 | . . . 2 . Weapon Failures 1 | . . . 1 . Overload Shots . | . . . . . Overflow Damage 15 | . . . 15 . Projectiles . | . . . . . Explosions 15 | . . . 15 . Melee . | . . . . . Knockbacks 9 | . 2 7 . . Impact . | . . . . . Kinetic 9 | . 2 7 . . Secondary . | . . . . . Self-Inflicted Damage 139 | . . 22 117 . Shots 3 | . . 1 2 . Rammed . | . . . . . Targets Rammed . | . . . . . Kicked . | . . . . . Crushed . | . . . . . Highest Temperature 561 | . 28 1 244 561 Average Temperature 117 | . 13 1 75 171 Received Heat Transfer 924 | . 6 117 288 513 Effects 7 | . . . . 7 Shutdowns 1 | . . . . 1 Interference 2 | . . . . 2 Matter Decay 1 | . . . . 1 Damage (core) 3 | . . . . 3 Siege Activations . | . . . . . Robots Corrupted . | . . . . . Combat Hostiles . | . . . . . Parts Fried . | . . . . . Impact Corruptions . | . . . . . Robots Melted . | . . . . . Combat Hostiles . | . . . . . Parts Melted 2 | . . 1 . 1 Heat Transferred 1520 | . . 225 333 962 Parts Sabotaged . | . . . . . Parts Stolen . | . . . . . Parts Stripped . | . . . . . Power Chain Reactions 1 | . . 1 . . Alert | -11 -10 -10 -8 -8 ------- Run | Yrd Mat Sub Mat Gar Peak Influence 466 | . 293 . 323 466 Initial 56 | . . . . 56 Average 165 | . 140 . 157 279 Maximum Alert Level 2 | . 1 . 1 2 Low Security (%) 70 | . 84 . 69 22 Level 1 27 | . 15 . 30 67 Level 2 1 | . . . . 10 Level 3 . | . . . . . Level 4 . | . . . . . Level 5 . | . . . . . High Security . | . . . . . Max Security . | . . . . . Squads Dispatched 7 | . 1 . 6 . Investigation 3 | . . . 3 . Extermination . | . . . . . Reinforcement 1 | . 1 . . . Assault . | . . . . . Garrison 3 | . . . 3 . Intercept . | . . . . . Searches Triggered . | . . . . . Construction Impeded . | . . . . . Haulers Reinforced . | . . . . . Active Scanning Responses . | . . . . . Cargo Convoy Interrupts . | . . . . . Stealth | -11 -10 -10 -8 -8 --------- Run | Yrd Mat Sub Mat Gar Distress Signals 7 | . 4 . 3 . Communications Jammed . | . . . . . Distress Signals . | . . . . . Times Spotted 77 | . 21 15 24 17 Peak Tracking Total 8 | . 4 4 8 5 Tactical Retreats 4 | . 1 2 . 1 Traps | -11 -10 -10 -8 -8 ------- Run | Yrd Mat Sub Mat Gar Traps Triggered 14 | . 6 1 3 4 Indirectly . | . . . . . Trap Hack Attempts . | . . . . . Triggered . | . . . . . Disarmed . | . . . . . Reprogrammed . | . . . . . Reused . | . . . . . Traps Extracted . | . . . . . Installed . | . . . . . Triggered . | . . . . . Machines | -11 -10 -10 -8 -8 ---------- Run | Yrd Mat Sub Mat Gar Machines Disabled 5 | . 2 1 2 . Max in Single Turn 2 | . 1 1 2 . Machines Repaired . | . . . . . Machines Dismantled . | . . . . . Machines Sabotaged . | . . . . . Overloaded Fab Kills . | . . . . . Hacking | -11 -10 -10 -8 -8 --------- Run | Yrd Mat Sub Mat Gar Machines Accessed 14 | . 2 3 7 2 Terminals 10 | . 2 . 6 2 Fabricators . | . . . . . Repair Stations . | . . . . . Recycling Units . | . . . . . Scanalyzers . | . . . . . Garrison Access 1 | . . . 1 . Total Hacks 42 | . 5 8 26 3 Successful 24 | . 1 8 15 . Failed 18 | . 4 . 11 3 Catastrophic 3 | . . . 1 2 Database Lockouts . | . . . . . Manual 30 | . 4 . 25 1 Terminals 33 | . 5 . 25 3 Fabricators . | . . . . . Repair Stations . | . . . . . Recycling Units . | . . . . . Scanalyzers . | . . . . . Garrison Access 1 | . . . 1 . Terminal Hacks 14 | . 1 8 5 . Record 6 | . . 6 . . Robot Analysis 3 | . . . 3 . Open Door 1 | . . 1 . . Terminal Index 1 | . . . 1 . Unreport Threat 1 | . . . 1 . Locate Traps 1 | . 1 . . . Release Object 1 | . . 1 . . Fabricator Hacks . | . . . . . Repair Station Hacks . | . . . . . Recycling Unit Hacks . | . . . . . Scanalyzer . | . . . . . Garrison Access Hacks 1 | . . . 1 . Unlock Access 1 | . . . 1 . Unauthorized Hacks 9 | . . . 9 . Terminals 9 | . . . 9 . Botnet 2 | . . . 2 . Detonate 1 | . . . 1 . Operators 1 | . . . 1 . Skim 5 | . . . 5 . Fabricators . | . . . . . Repair Stations . | . . . . . Recycling Units . | . . . . . Scanalyzers . | . . . . . Garrison Access . | . . . . . Data Cores Recovered . | . . . . . Used . | . . . . . Hacking Detections 8 | . 1 . 6 1 Full Trace Events 2 | . . . 1 1 Feedback Events . | . . . . . Feedback Blocked . | . . . . . Robot Schematics Acquired . | . . . . . Robots Built . | . . . . . Authchips . | . . . . . Time . | . . . . . Total Robot Build Rating . | . . . . . Part Schematics Acquired . | . . . . . Parts Built . | . . . . . Authchips . | . . . . . Time . | . . . . . Total Part Build Rating . | . . . . . Parts Repaired . | . . . . . Time . | . . . . . Parts Recycled . | . . . . . Recycled Matter . | . . . . . Retrieved Matter . | . . . . . Retrieved Components . | . . . . . Parts Scanalyzed . | . . . . . Part Schematics Acquired . | . . . . . Parts Damaged . | . . . . . Bothacking | -11 -10 -10 -8 -8 ------------ Run | Yrd Mat Sub Mat Gar Used RIF Installer . | . . . . . Robots Hacked . | . . . . . Non-combat . | . . . . . Combat . | . . . . . Robot Hacks Applied . | . . . . . Relay Couplers Released . | . . . . . Fabnet Peak Effective % . | . . . . . Robots Rewired . | . . . . . Allies Hacked . | . . . . . Hacks Repelled . | . . . . . Allies | -11 -10 -10 -8 -8 -------- Run | Yrd Mat Sub Mat Gar Total Allies . | . . . . . Largest Group . | . . . . . Highest-Rated Group . | . . . . . Highest-Rated Ally . | . . . . . Total Orders . | . . . . . Ally Attacks . | . . . . . Total Damage . | . . . . . Kills . | . . . . . Allies Corrupted . | . . . . . Allies Melted . | . . . . . Intel | -11 -10 -10 -8 -8 ------- Run | Yrd Mat Sub Mat Gar Robot Analysis Total 3 | . . . 3 . Derelict Logs Recovered 1 | . . 1 . . Drone Launches . | . . . . . Drone Recoveries . | . . . . . Exploration | -11 -10 -10 -8 -8 ------------- Run | Yrd Mat Sub Mat Gar Turns Passed 6630 | . 1190 4239 883 318 Spaces Moved 3888 | 1 708 2452 555 172 Core 5 | . 5 . . . Treads 2928 | . 461 2452 15 . Legs 955 | 1 242 . 540 172 Wheels . | . . . . . Hover . | . . . . . Flight . | . . . . . Fastest Speed 90 | 120 120 160 90 105 Average Speed 147 | 120 146 160 105 105 Slowest Speed 250 | 120 250 240 160 105 Overloaded Moves . | . . . . . Propulsion Burnouts . | . . . . . Robots Hopped . | . . . . . Cave-ins Triggered . | . . . . . Exploration Rate (%) 50 | 2 89 97 43 21 Regions Visited 4 Branch Regions 1 Pre-discovered Areas 2 | . . 2 . . Known Exits Taken 1 | . . . 1 . Unknown Exits Taken 3 | 1 1 1 . . Scrap Searched 16 | . . 16 . . Spaces Dug . | . . . . . Terrain Destroyed 51 | . . 3 48 . Melee . | . . . . . Projectile 4 | . . . 4 . AOE 47 | . . 3 44 . Terrain Rammed . | . . . . . Walls Destroyed . | . . . . . Machines Disabled . | . . . . . Actions | -11 -10 -10 -8 -8 --------- Run | Yrd Mat Sub Mat Gar Total 4408 | . 793 2618 749 248 Wait 158 | . 16 15 104 23 Move 3885 | . 707 2451 555 172 Hop . | . . . . . Pick Up 29 | . 8 10 10 1 Fast Attach 30 | . 15 4 11 . Attach 15 | . 1 7 4 3 Detach 1 | . . 1 . . Swap 13 | . 2 7 2 2 Drop 36 | . 8 19 7 2 Fire 229 | . 36 96 56 41 Melee . | . . . . . Ram . | . . . . . Kick . | . . . . . Crush . | . . . . . Escape Stasis 3 | . . . . 3 Rewire . | . . . . . Trap . | . . . . . Miscellaneous 9 | . . 8 . 1 Route ------- -11/Scrapyard -10/Materials (discovered 5 exits: [*Mat x3] / [*Min] / *Sub) -10/Subcaves (discovered 3 exits: *Mat x2 / [*Rec]) -8/Materials (discovered 2 exits: [*Fac] / Gar) -8/Garrison History --------- Turn | Location | Event 1 | -11/Scrapyard | Discovered new exit (range 0) 1 | -11/Scrapyard | Entered Materials 208 | -10/Materials | Discovered new exit (range 12) 318 | -10/Materials | Build established: Mutant 435 | -10/Materials | Discovered new exit (range 11) 651 | -10/Materials | Discovered new exit (range 16) 1047 | -10/Materials | Discovered new exit (range 16) 1122 | -10/Materials | Discovered new exit (range 12) 1191 | -10/Materials | Entered Subcaves 1215 | -10/Subcaves | Discovered new exit (range 11) 1383 | -10/Subcaves | Learned location of Zion (-6) 1383 | -10/Subcaves | Met a Zionite searching for "candidates" 1478 | -10/Subcaves | Shifting Twisted Machinery released Battle Cannon 1479 | -10/Subcaves | Shifting Twisted Machinery released Sub. Monowheel 1790 | -10/Subcaves | A swath of the cavern ceiling suddenly collapsed 1876 | -10/Subcaves | Discovered new exit (range 5) 1878 | -10/Subcaves | Shifting Twisted Machinery released Sub. Beam Cannon 2204 | -10/Subcaves | Shifting Twisted Machinery released Piercing Trap 2955 | -10/Subcaves | Visited Clippyterm 2960 | -10/Subcaves | Learned location of Extension (-6) 2960 | -10/Subcaves | Learned Research security intel 3131 | -10/Subcaves | Shifting Twisted Machinery released Sub. Laser 3156 | -10/Subcaves | Discovered new exit (range 16) 3799 | -10/Subcaves | Build established: Derelict-Mutant 3955 | -10/Subcaves | A swath of the cavern ceiling suddenly collapsed 5264 | -10/Subcaves | Visited 4L-MR0's lab 5293 | -10/Subcaves | Found Prototype Leg 5430 | -10/Subcaves | Entered Materials 5430 | -8/Materials | Evolved 4 slots: Propulsion x2, Utility x2 5456 | -8/Materials | Identified Arachnoskeleton 5457 | -8/Materials | Attached Arachnoskeleton, gained temporary slots: Propulsion x3 5749 | -8/Materials | Build established: Mutant 5761 | -8/Materials | Garrison activated, responded to threat 5899 | -8/Materials | Lost 4 parts (1p1n1u1w) 5973 | -8/Materials | Discovered new exit (range 10) 6313 | -8/Materials | Identified exit to Garrison 6313 | -8/Materials | Entered Garrison 6429 | -8/Garrison | Triggered checkpoint 6529 | -8/Garrison | Triggered checkpoint 6549 | -8/Garrison | Triggered checkpoint 6587 | -8/Garrison | Triggered checkpoint 6617 | -8/Garrison | Core integrity fell below 50% 6631 | -8/Garrison | Core integrity fell below 20% 6632 | -8/Garrison | Core destroyed Last Messages --------------- 06591_ Y-45 Defender destroyed. 06592_ Acquired 5 matter. 06598_ Acquired 1 matter. 06599_ G-47 Trooper destroyed. 06607_ Critical hit (Burn: +37). 06609_ Reflective Plating destroyed. 06609_ Critical hit (Burn: +37). 06617_ G-47 Trooper destroyed. 06617_ Switching to secondary target: G-50 Soldier. 06622_ Titanium Leg destroyed. 06623_ Overheating: Matter decay (-42). 06623_ Temporary Propulsion slot lost. 06623_ G-50 Soldier destroyed. 06626_ G-50 Soldier suffers critical hit (Burn). 06626_ Flak Gun destroyed. 06630_ Overheating: Core damaged (-93). 06630_ Deuterium Engine destroyed. 06631_ Overheating: Core damaged (-77). 06632_ Overheating: Core damaged (-104). Map ----- +----------------------------------------------------+ | ?????????????????????????????????????????????????? | | ?????????????????????????????????????????????????? | | ?????????????????????????????????????????????????? | | ?????????????????????????????????????????????????? | | ???????????????????????????????????????????######? | | ???????????????????????????????????????????# #? | | ???????????????????????????????????????????# #? | | ???????????????????????????????????????????# #? | | ???????????????????????????????????????????# ###? | | ???????????????????????????????????????????# #??? | | ???????????????????????????????????????????# #??? | | ???????????????????????????????????????????# #??? | | ???????????????????????????????????????????# #??? | | ???????????????????????????????????????????# #??? | | ???????????????????????????????????????????# #??? | | ????????????????????????????################ #??? | | ????????????????????????????# #??? | | ????????????????????????????# [ = #??? | | ????????????????????????????# ^###########%####??? | | ????????????????????????????#^ #?????????#"#?????? | | ????????????????????????????#= #?????????#[#?????? | | ????????????????????????????#%[#?????????# #?????? | | ????????????????????????????#[=+?????????# #?##### | | ??????????????????????#######=%#?????????# #?# # | | ??????????????????????# *##*%#?????????# ### # | | ?????????????????## ## =@%##==##????????# | | ????????????????## %%= * [ #????????# ####### | | ????????????^ =%= [g%% #????????# ##????? | | ???????????^^ ! =![ #????????# [##???? | | ???????????####### ## ## #????????"[!%#???? | | ?????????????????# ??# ## #????????# ###???? | | ????????????????C ? ???????###?????? | | ???????????????#C% C#??????????????? | | ???????????????# " C#??????????????? | | ???????????????#?" C#??????????????? | | ?????????????????# ## ## ###??????????????? | | ?????????????????# ?# ## #????????????????? | | ????????????????? ?? ????????????????? | | ???????????????? ?? ????????????????? | | ????????????????????? ???????????????? | | ?????????????????????##""""## ####???????????????? | | ????????????????????????????? ???????????????????? | | ?????????????????????????????????????????????????? | | ?????????????????????????????????????????????????? | | ?????????????????????????????????????????????????? | | ?????????????????????????????????????????????????? | | ?????????????????????????????????????????????????? | | ?????????????????????????????????????????????????? | | ?????????????????????????????????????????????????? | | ?????????????????????????????????????????????????? | +----------------------------------------------------+ Best States ------------- Heat Dissipation 53 Energy Generation 15 Energy Capacity 275 Matter Stores 300 Matter Capacity 300 Sight Range 16 Terrain Scan Density 10 Armor Coverage 800 Resistance: TH 10 Evasion (%) 57 Recoil Reduction 2 Item Schematics ----------------- None Robot Schematics ------------------ None Fabricated ------------ Nothing Alien Tech Used ----------------- None Achievements -------------- None Challenges ------------ None Game ------ Seed ParticleShrapnelObliterator Manual? 0 Play Time 00:36:56 Cumulative 139.8 hours Start 2024.11.23 @ 13:26:22 End 2024.11.23 @ 14:03:09 Sessions 1 Manual Loads 0 Difficulty Rogue Special Mode None Game No. 116 Rogue 97 Adventurer 16 Explorer 3 Win Type - Total 10 Types 8/0/1/1/0/0/0/0/0 Lore% 30 Gallery% 66 Achievement% 58 Wizard Run 0 Options --------- Layout 2 ASCII 0 Keyboard 0 Movement Numpad Keybinds 1 Fullscreen 1 Font 24/Terminus Map View 50x44 Zoom Use 0% Tactical HUD 1 Map Filters NONE Filters NONE Steam 1 RUN: 690a6e7c-dfd0-4bed-b9bb-b4aea78aa69b